[Event "4th ESNA Championship 2022"]
[Site "Vaduz"]
[Date "2022.09.26"]
[Round "3.2"]
[White "Carpenter, Paul A"]
[Black "Berend, Fred"]
[Result "0-1"]
[ECO "D00"]
[WhiteElo "1986"]
[BlackElo "2300"]
[Annotator "TA"]
[PlyCount "72"]
[EventDate "2022.09.25"]
[EventType "tourn"]
[EventCountry "LIE"]
[SourceTitle "playchess.com"]
[Source "ChessBase"]
[SourceQuality "1"]
[TimeControl "40/5400+30:1800+30"]

{[%evp 9,72,-30,-27,-43,-34,-38,-47,-47,-27,-27,-39,-37,-28,-39,-53,-84,-81,-95,-49,-41,-34,-41,-75,-150,0,-35,0,0,54,0,0,-91,-29,-100,-72,-142,-68,-106,-119,-294,-263,-285,-123,-234,-227,-227,-218,-204,-199,-252,-227,-219,-214,-509,-502,-768,-754,-754,-482,-772,-767,-719,-692,-1214,-1177]} 1. d4 {[%emt 0:00:06]} Nf6 {[%emt 0:04:59]} 2. Bg5 {[%emt 0:00:48]} d5 {[%emt 0:00:06]} 3. Bxf6 {[%emt 0:02:17]} gxf6 {[%emt 0:00:08]} 4. e3 {[%emt 0:03:21]} c5 {[%emt 0:00:15]} 5. c3 {[%emt 0:02:11]} e5 {[%emt 0:02:58]} 6. dxc5 {[%emt 0:05:07] D00: 1 d4 d5: Unusual lines.} Bxc5 {[%emt 0:00:16]} 7. Nd2 {[%emt 0:00:06]} Nc6 {[%emt 0:00:30]} 8. Nb3 {[%emt 0:01:48] Black is slightly better.} Be7 {[%emt 0:00:19] [#]} 9. g3 $146 {[%emt 0:04:52]} ({Predecessor:} 9. Bd3 Be6 10. Ne2 Qd7 11. O-O O-O-O 12. f4 Qc7 13. f5 Bd7 14. Qe1 Kb8 15. e4 {½-½ (41) Chernyshov,K (2531)-Berczes,D (2342) Budapest 2005}) 9... Be6 {[%emt 0:05:51]} 10. Qh5 {[%emt 0:07:30]} Qd7 $36 {[%emt 0:07:36][%mdl 2048] Black has some pressure.} 11. Bh3 {[%emt 0:06:16]} O-O-O {[%emt 0:03:20]} 12. O-O-O {[%emt 0:05:54]} Kb8 {[%emt 0:03:35]} 13. f4 {[%emt 0:05:08] aiming for f5.} Bxh3 {[%emt 0:00:57]} (13... d4 $17 {[%cal Oc6b4] White must now prevent ...Nb4!} 14. exd4 Nxd4 $1 15. Bxe6 Qxe6) 14. Nxh3 $15 {[%emt 0:09:45]} a5 {[%emt 0:00:59][%cal Ba7a5,Ba5a4][%mdl 32]} 15. Nf2 {[%emt 0:12:50]} a4 {[%emt 0:00:35]} 16. Na1 {[%emt 0:09:20]} ({White should try} 16. Nd2) 16... Bc5 {[%emt 0:11:02]} (16... a3 $17 {And now ...axb2+ would win.} 17. Nb3 Rc8) 17. Rhe1 {[%emt 0:01:45]} Qe6 {[%emt 0:08:28] Strongly threatening ...d4.} (17... a3 $5 {[%cal Ra3b2]} 18. b4 Be7 $11) 18. Nd3 {[%emt 0:07:56]} Bb6 {[%emt 0:00:49]} ({Better is} 18... Bxe3+ $11 19. Kb1 (19. Rxe3 d4 $15) 19... d4) 19. Kb1 {[%emt 0:00:22]} (19. Nc2 $14) 19... a3 $11 {[%emt 0:09:32]} 20. b3 {[%emt 0:04:09] [#]} (20. bxa3 $11 Rc8 21. fxe5) 20... e4 {[%emt 0:03:19]} (20... Na7 $1 $17 {[%cal Ra7b5] Hoping for ...Nb5.} 21. fxe5 Nb5) 21. Nf2 {[%emt 0:01:47]} (21. Nc1 $1 $11) 21... f5 {[%emt 0:03:27]} 22. Nc2 {[%emt 0:00:51] [#]} (22. Rc1 $142) 22... Qf6 {[%emt 0:00:26]} (22... Ba5 $1 $17 {[%cal Ra5c3]} 23. b4 Qf6) 23. Nd4 {[%emt 0:00:38]} Rc8 {[%emt 0:11:17] ...Nxd4 is the strong threat.} 24. Qe2 $2 {[%emt 0:01:45]} (24. Rc1 $17) 24... Ba5 $19 {[%emt 0:08:57]} 25. b4 {[%emt 0:01:05]} Bb6 {[%emt 0:00:09]} (25... Nxd4 $19 {and Black stays clearly on top.} 26. exd4 Bb6) 26. Qb5 {[%emt 0:00:27]} (26. Rc1 $17) 26... Bxd4 {[%emt 0:01:36]} 27. cxd4 {[%emt 0:00:26]} Qd6 {[%emt 0:00:25]} 28. Qc5 {[%emt 0:00:11]} Rhd8 {[%emt 0:00:12][%cal Bh8d8,Bd8d6,Bd6b6,Bb6b5,Bb5b2,Bb2h2][%mdl 32]} 29. b5 {[%emt 0:01:30]} (29. Rc1 {might work better.}) 29... Na5 {[%emt 0:03:42]} 30. Qxd6+ {[%emt 0:00:22]} Rxd6 {[%emt 0:00:02]} 31. g4 $2 {[%emt 0:00:46]} (31. Rc1) 31... Rb6 {[%emt 0:00:55] Black is clearly winning.} 32. Rc1 {[%emt 0:00:40]} (32. Re2 $142 Rxb5+ 33. Ka1) 32... Rxb5+ {[%emt 0:00:19]} 33. Ka1 {[%emt 0:00:03]} Rxc1+ {[%emt 0:01:17]} 34. Rxc1 {[%emt 0:00:06]} Rb2 {[%emt 0:00:12]} 35. Nd1 {[%emt 0:00:15]} Rxh2 {[%emt 0:01:03]} 36. Nc3 {[%emt 0:00:23]} fxg4 {[%emt 0:00:45] Weighted Error Value: White=0.68/Black=0.23 (precise)} 0-1

[Event "4th ESNA Championship 2022"]
[Site "Vaduz"]
[Date "2022.09.26"]
[Round "3.3"]
[White "Efimov, Igor"]
[Black "Frick, Renato"]
[Result "1-0"]
[ECO "C78"]
[WhiteElo "2360"]
[BlackElo "1875"]
[Annotator "RC"]
[PlyCount "47"]
[EventDate "2022.09.25"]
[EventType "tourn"]
[EventCountry "LIE"]
[SourceTitle "playchess.com"]
[Source "ChessBase"]
[SourceQuality "1"]
[TimeControl "40/5400+30:1800+30"]

1. e4 {[%emt 0:00:11]} e5 {[%emt 0:00:32]} 2. Nf3 {[%emt 0:00:12]} Nc6 {[%emt 0:00:09]} 3. Bb5 {[%emt 0:00:10]} a6 {[%emt 0:00:17]} 4. Ba4 {[%emt 0:00:10]} Nf6 {[%emt 0:00:51]} 5. O-O {[%emt 0:00:39]} b5 {[%emt 0:04:00]} 6. Bb3 {[%emt 0:00:15]} Be7 {[%emt 0:05:05]} 7. a4 {[%emt 0:03:18]} Rb8 {[%emt 1:23:06]} 8. axb5 {[%emt 0:13:41]} axb5 {[%emt 0:00:00]} 9. d4 {[%emt 0:37:02]} d6 {[%emt 0:00:00]} 10. c3 {[%emt 0:03:19]} exd4 {[%emt 0:00:00]} 11. cxd4 {[%emt 0:00:30]} O-O {[%emt 0:00:00]} 12. h3 {[%emt 0:00:30]} Nxe4 {[%emt 0:00:00]} 13. Bd5 {[%emt 0:00:10]} Nxf2 {[%emt 0:00:00]} 14. Rxf2 {[%emt 0:00:17]} Nb4 {[%emt 0:00:00]} 15. Nc3 {[%emt 0:07:35]} c6 {[%emt 0:00:00]} 16. Be4 {[%emt 0:00:26]} f5 {[%emt 0:00:00]} 17. Bb1 {[%emt 0:00:21]} Be6 {[%emt 0:00:00]} 18. Qd2 {[%emt 0:07:19]} h6 {[%emt 0:00:00]} 19. d5 {[%emt 0:00:57]} Nxd5 {[%emt 0:00:00]} 20. Nd4 {[%emt 0:00:18]} Bg5 {[%emt 0:00:00]} 21. Nxe6 {[%emt 0:06:18]} Bxd2 {[%emt 0:00:00]} 22. Nxd8 {[%emt 0:00:07]} Bxc1 {[%emt 0:00:00]} 23. Nxc6 {[%emt 0:00:18]} Nxc3 {[%emt 0:00:00]} 24. bxc3 {[%emt 0:00:15]} 1-0

[Event "4th ESNA Championship 2022"]
[Site "Vaduz"]
[Date "2022.09.26"]
[Round "3.4"]
[White "Kirby, Peter J."]
[Black "Apol, Luitjen Akselsson"]
[Result "0-1"]
[ECO "E62"]
[WhiteElo "2011"]
[BlackElo "2113"]
[Annotator "ChessBase"]
[PlyCount "91"]
[EventDate "2022.09.25"]
[EventType "tourn"]
[EventCountry "LIE"]
[SourceTitle "playchess.com"]
[Source "ChessBase"]
[SourceQuality "1"]
[TimeControl "40/5400+30:1800+30"]

1. d4 {[%emt 0:00:02]} Nf6 {[%emt 0:00:25]} 2. Nf3 {[%emt 0:00:06]} g6 {[%emt 0:00:15]} 3. c4 {[%emt 0:00:09]} Bg7 {[%emt 0:00:33]} 4. g3 {[%emt 0:00:08]} O-O {[%emt 0:00:31]} 5. Bg2 {[%emt 0:00:06]} d6 {[%emt 0:00:29]} 6. O-O {[%emt 0:00:09]} Nc6 {[%emt 0:00:36]} 7. Nc3 {[%emt 0:00:24]} Bg4 {[%emt 0:01:01]} 8. d5 {[%emt 0:01:20]} Na5 {[%emt 0:00:29]} 9. b3 {[%emt 0:00:51]} c5 {[%emt 0:03:36]} 10. dxc6 {[%emt 0:00:10]} Nxc6 {[%emt 0:00:11]} 11. Be3 {[%emt 0:01:27]} Qa5 {[%emt 0:02:43]} 12. Rc1 {[%emt 0:01:03]} Qh5 {[%emt 0:01:48]} 13. Nd5 {[%emt 0:01:14]} Nxd5 {[%emt 0:29:19]} 14. cxd5 {[%emt 0:05:54]} Nb4 {[%emt 0:01:30]} 15. Rc7 {[%emt 0:13:39]} Nxd5 {[%emt 0:02:24]} 16. Rxb7 {[%emt 0:00:20]} Nxe3 {[%emt 0:00:38]} 17. fxe3 {[%emt 0:00:02]} Bf6 {[%emt 0:04:58]} 18. Qd2 {[%emt 0:07:03]} Rac8 {[%emt 0:10:20]} 19. Rxa7 {[%emt 0:06:06]} Rc3 {[%emt 0:00:33]} 20. Nd4 {[%emt 0:04:06]} Qc5 {[%emt 0:00:33]} 21. Ra4 {[%emt 0:02:06]} Bg5 {[%emt 0:00:36]} 22. Rc4 {[%emt 0:02:49]} Bxe3+ {[%emt 0:00:35]} 23. Qxe3 {[%emt 0:01:36]} Rxe3 {[%emt 0:37:57]} 24. Rxc5 {[%emt 0:00:08]} dxc5 {[%emt 0:00:00]} 25. Nc6 {[%emt 0:01:37]} Rxe2 {[%emt 0:00:00]} 26. Rf2 {[%emt 0:01:19]} Re1+ {[%emt 0:00:00]} 27. Rf1 {[%emt 0:00:02]} Re2 {[%emt 0:00:00]} 28. Rf2 {[%emt 0:00:05]} e6 {[%emt 0:00:00]} 29. h3 {[%emt 0:01:25]} Rxf2 {[%emt 0:00:00]} 30. Kxf2 {[%emt 0:00:09]} Bf5 {[%emt 0:00:00]} 31. Ke3 {[%emt 0:02:05]} Kg7 {[%emt 0:00:00]} 32. Kd2 {[%emt 0:00:52]} Ra8 {[%emt 0:00:00]} 33. a4 {[%emt 0:01:00]} c4 {[%emt 0:00:00]} 34. Kc3 {[%emt 0:00:25]} cxb3 {[%emt 0:00:00]} 35. Kxb3 {[%emt 0:00:03]} Kf6 {[%emt 0:00:00]} 36. Kb4 {[%emt 0:00:43]} e5 {[%emt 0:00:00]} 37. a5 {[%emt 0:01:04]} Bd3 {[%emt 0:00:00]} 38. Nxe5 {[%emt 0:03:40]} Rb8+ {[%emt 0:00:00]} 39. Kc3 {[%emt 0:00:06]} Kxe5 {[%emt 0:00:00]} 40. Kxd3 {[%emt 0:00:02]} Rb3+ {[%emt 0:00:00]} 41. Kc4 {[%emt 0:31:10]} Rxg3 {[%emt 0:26:46]} 42. Bb7 {[%emt 0:00:43]} Kd6 {[%emt 0:00:39]} 43. a6 {[%emt 0:03:49]} Kc7 {[%emt 0:00:31]} 44. Bd5 {[%emt 0:00:18]} Kb6 {[%emt 0:00:28]} 45. Bxf7 {[%emt 0:00:40]} Rxh3 {[%emt 0:00:08]} 46. Kd4 {[%emt 0:41:15]} 0-1

[Event "4th ESNA Championship 2022"]
[Site "Vaduz"]
[Date "2022.09.26"]
[Round "3.5"]
[White "Michaelides, Konstantinos"]
[Black "Volpinari, Danilo"]
[Result "1-0"]
[ECO "A43"]
[WhiteElo "2304"]
[BlackElo "1929"]
[Annotator "TA"]
[PlyCount "69"]
[EventDate "2022.09.25"]
[EventType "tourn"]
[EventCountry "LIE"]
[SourceTitle "playchess.com"]
[Source "ChessBase"]
[SourceQuality "1"]
[TimeControl "40/5400+30:1800+30"]

{[%evp 16,69,53,53,88,63,71,44,56,57,69,66,57,12,54,23,99,90,115,120,115,27,90,102,162,164,160,141,180,122,173,120,151,156,162,150,157,157,164,159,152,158,157,140,180,152,239,180,414,273,405,300,1047,1042,1005,983]} 1. d4 {[%emt 0:00:09]} c5 {[%emt 0:05:10]} 2. d5 {[%emt 0:00:41]} g6 {[%emt 0:00:06]} 3. e4 {[%emt 0:01:15]} Bg7 {[%emt 0:00:33]} 4. Nc3 {[%emt 0:01:52]} d6 {[%emt 0:01:58]} 5. Nf3 {[%emt 0:00:38]} Nf6 {[%emt 0:01:57]} 6. Bb5+ {[%emt 0:00:25]} Nbd7 {[%emt 0:04:16]} 7. a4 {[%emt 0:01:23]} O-O {[%emt 0:00:36]} 8. O-O {[%emt 0:00:30]} a6 {[%emt 0:03:53]} 9. Be2 {[%emt 0:01:53]} Qc7 {[%emt 0:01:13] A43: Schmid Benoni.} 10. h3 {[%emt 0:05:14]} Rb8 {[%emt 0:16:57]} 11. Nd2 {[%emt 0:05:21][%cal Bf3d2,Bd2b3,Bb3a5][%mdl 32] [#]} Re8 $146 {[%emt 0:05:39] White is slightly better.} ({Predecessor:} 11... Ne8 12. Ra3 e5 13. g4 Qd8 14. Na2 Bf6 15. c4 Be7 16. Rg3 Ng7 17. Nc3 Kh8 {½-½ (45) Beltran,C (2176)-Morales,J (2397) Cali 2018}) 12. a5 {[%emt 0:04:17]} b5 {[%emt 0:09:48]} 13. axb6 $1 {[%emt 0:01:39]} Nxb6 {[%emt 0:00:24]} 14. Nb3 {[%emt 0:08:33]} ({Don't blunder} 14. Bxa6 $2 Ra8 15. Bxc8 Rxa1 $19) 14... Ra8 {[%emt 0:02:44]} 15. Be3 {[%emt 0:16:30]} Bb7 {[%emt 0:13:36]} (15... e6 $11) 16. Na5 $16 {[%emt 0:03:29]} Bc8 {[%emt 0:00:32]} 17. Qd2 {[%emt 0:05:35]} Bd7 {[%emt 0:04:24]} 18. f4 {[%emt 0:05:42]} (18. Bf4 $16) 18... Reb8 {[%emt 0:05:41]} (18... e6 $11 {keeps the balance.}) 19. Bf3 {[%emt 0:06:20] White stays focused until the end.} Ra7 {[%emt 0:02:03]} (19... Bb5 $16 {was called for.}) 20. Bf2 {[%emt 0:05:17]} Ne8 {[%emt 0:02:04]} 21. Rfe1 {[%emt 0:08:13]} e6 {[%emt 0:06:38]} 22. Ra2 {[%emt 0:08:13]} ({White should try} 22. dxe6 $18 Bxe6 23. e5) 22... Rba8 {[%emt 0:01:12]} (22... exd5 $16 23. exd5 Nf6) 23. e5 {[%emt 0:01:31]} (23. dxe6 $18 fxe6 24. e5) 23... exd5 {[%emt 0:05:05]} 24. Nxd5 {[%emt 0:00:26]} Nxd5 {[%emt 0:00:08]} 25. Bxd5 {[%emt 0:00:08]} ({Stronger than} 25. Qxd5 Be6 26. exd6 Bxd5 $15) 25... Rb8 {[%emt 0:01:09][%cal Rd6e5]} 26. Nc4 {[%emt 0:01:15] [#] Strongly threatening exd6. White is much more active. The black rooks are badly placed.} dxe5 {[%emt 0:02:25]} 27. fxe5 {[%emt 0:01:06]} Be6 {[%emt 0:01:47]} 28. Bxe6 {[%emt 0:02:54]} fxe6 {[%emt 0:00:01]} 29. Qe3 {[%emt 0:01:31]} Rc8 {[%emt 0:01:16]} 30. Ra5 {[%emt 0:01:38][%cal Ba2a5,Ba5c5,Bc5c6][%mdl 32]} Qe7 {[%emt 0:01:30]} (30... Bf8 $16 31. Qe4 Qc6 32. Qxc6 Rxc6) 31. Rxc5 {[%emt 0:01:29]} Rb8 {[%emt 0:00:28] [#]} (31... Qxc5 32. Qxc5 Rxc5 33. Bxc5 Ra8) 32. b3 {[%emt 0:00:32] Threatens to win with Na5.} Nc7 {[%emt 0:00:30]} (32... Rc7 $142 33. Ra5 Rc6) 33. Rc6 {[%emt 0:00:40]} Nd5 $2 {[%emt 0:00:12]} (33... Rab7 34. Qe4 Qd7) 34. Qxa7 $18 {[%emt 0:00:13]} Qxa7 {[%emt 0:00:09]} 35. Bxa7 {[%emt 0:00:03] Weighted Error Value: White=0.32/Black=0.48} 1-0

[Event "4th ESNA Championship 2022"]
[Site "Vaduz"]
[Date "2022.09.27"]
[Round "4.1"]
[White "Mizzi, Jack"]
[Black "Volpinari, Danilo"]
[Result "1-0"]
[ECO "D11"]
[WhiteElo "1863"]
[BlackElo "1929"]
[Annotator "TA"]
[PlyCount "55"]
[EventDate "2022.09.25"]
[EventType "tourn"]
[EventCountry "LIE"]
[SourceTitle "playchess.com"]
[Source "ChessBase"]
[SourceQuality "1"]
[TimeControl "40/5400+30:1800+30"]

{[%evp 9,55,13,26,37,36,0,0,0,0,0,0,0,10,-6,11,14,16,10,61,36,89,82,218,209,307,291,278,285,270,179,220,210,211,195,196,184,184,187,218,228,262,252,259,218,252,272,312,310]} 1. d4 {[%emt 0:00:05]} d5 {[%emt 0:00:15]} 2. c4 {[%emt 0:00:19]} c6 {[%emt 0:00:20]} 3. e3 {[%emt 0:00:14]} Nf6 {[%emt 0:01:16]} 4. Nf3 {[%emt 0:00:55]} Bg4 {[%emt 0:00:52]} 5. h3 {[%emt 0:02:44]} Bf5 {[%emt 0:02:25]} 6. Nc3 {[%emt 0:01:32] D11: Slav Defence: 3 Nf3 sidelines and 3...Nf6 4 e3 Bg4.} e6 {[%emt 0:05:55]} 7. Qb3 {[%emt 0:02:13]} Qb6 {[%emt 0:03:00]} 8. Nh4 {[%emt 0:04:13] [#] The position is equal.} Be4 $146 {[%emt 0:08:12]} ({Predecessor:} 8... Nbd7 9. g4 Bg6 10. Nxg6 hxg6 11. Bg2 Qa6 12. cxd5 exd5 13. g5 Nh7 14. h4 Qb6 {1-0 (48) Kobo,O (2380)-Farkas,R (2314) Batumi 2014}) 9. Be2 {[%emt 0:07:53]} Be7 {[%emt 0:07:35]} 10. O-O {[%emt 0:04:24]} Nbd7 {[%emt 0:02:57]} 11. Qxb6 {[%emt 0:02:57]} Nxb6 {[%emt 0:05:52]} 12. c5 {[%emt 0:13:46]} Nbd7 {[%emt 0:01:26]} 13. b4 {[%emt 0:01:52][%cal Bb2b4,Bb4b5,Bb5c6,Bc6c7][%mdl 32]} b6 {[%emt 0:04:54]} (13... O-O $11) 14. Ba6 {[%emt 0:06:22] Strongly threatening f3.} Rb8 {[%emt 0:10:12] [#]} ({Black should play} 14... Rd8 $14) 15. f3 $1 $16 {[%emt 0:03:05]} Bg6 {[%emt 0:03:08] This costs Black the game.} (15... bxc5 $16 16. bxc5 (16. Nxe4 dxe4 17. fxe4 Nxe4 $17) (16. fxe4 cxd4 17. exd4 Nxe4 $14) 16... Bc2) 16. Nxg6 $18 {[%emt 0:00:29]} hxg6 {[%emt 0:00:02]} (16... fxg6 {might work better.} 17. b5 bxc5) 17. b5 {[%emt 0:01:17]} bxc5 {[%emt 0:20:37]} 18. bxc6 {[%emt 0:00:31] Black must now prevent c7.} Nb6 {[%emt 0:00:08]} 19. c7 {[%emt 0:00:48]} Rc8 {[%emt 0:00:34]} 20. Bxc8 {[%emt 0:00:29]} Nxc8 {[%emt 0:00:03]} 21. dxc5 {[%emt 0:01:20]} Bxc5 {[%emt 0:00:52]} 22. Na4 {[%emt 0:01:15][%cal Bc3a4,Ba4c5,Bc5a6][%mdl 32]} Bd6 {[%emt 0:02:03]} 23. Bd2 {[%emt 0:03:55]} Bxc7 {[%emt 0:00:48]} 24. Rfc1 {[%emt 0:01:14]} Kd7 {[%emt 0:00:08]} 25. Nc5+ {[%emt 0:01:57]} Kd8 {[%emt 0:00:19] [#]} 26. Ba5 $1 {[%emt 0:07:32][%mdl 512]} Nb6 {[%emt 0:03:27]} (26... Bxa5 27. Nb7+) 27. Rab1 {[%emt 0:05:28]} Ne8 {[%emt 0:10:20]} 28. Na6 {[%emt 0:00:51] Weighted Error Value: White=0.11 (very precise) /Black=0.30} 1-0

[Event "4th ESNA Championship 2022"]
[Site "Vaduz"]
[Date "2022.09.27"]
[Round "4.2"]
[White "Apol, Luitjen Akselsson"]
[Black "Michaelides, Konstantinos"]
[Result "1-0"]
[ECO "D05"]
[WhiteElo "2113"]
[BlackElo "2304"]
[Annotator "TA"]
[PlyCount "61"]
[EventDate "2022.09.25"]
[EventType "tourn"]
[EventCountry "LIE"]
[SourceTitle "playchess.com"]
[Source "ChessBase"]
[SourceQuality "1"]
[TimeControl "40/5400+30:1800+30"]

{[%evp 16,61,11,7,12,-3,0,0,27,0,66,60,67,70,66,30,35,28,229,139,224,184,314,310,316,298,291,297,291,288,288,291,566,562,682,657,804,792,835,789,739,715,820,716,824,807,829,816]} 1. d4 {[%emt 0:00:15]} d5 {[%emt 0:01:49]} 2. Nf3 {[%emt 0:04:23]} e6 {[%emt 0:01:31]} 3. e3 {[%emt 0:02:07]} Nf6 {[%emt 0:02:29]} 4. Bd3 {[%emt 0:00:08]} c5 {[%emt 0:01:34]} 5. b3 {[%emt 0:00:48]} Bd6 {[%emt 0:03:36]} 6. O-O {[%emt 0:00:29]} O-O {[%emt 0:00:32]} 7. Bb2 {[%emt 0:00:34]} Nc6 {[%emt 0:01:24]} 8. a3 {[%emt 0:01:57]} b6 {[%emt 0:06:29]} 9. Nbd2 {[%emt 0:08:35]} Bb7 {[%emt 0:02:24] D05: Colle System with ...e6.} 10. Qe2 {[%emt 0:03:26]} Qe7 {[%emt 0:08:02]} 11. dxc5 {[%emt 0:21:10]} Bxc5 {[%emt 0:07:21] The position is equal.} 12. e4 {[%emt 0:04:57] [#]} dxe4 $146 {[%emt 0:04:53]} (12... a5 $11) ({Predecessor:} 12... Rfe8 13. e5 Nh5 14. b4 Nf4 15. Qd1 Nxd3 16. cxd3 Nxb4 17. axb4 Bxb4 18. Nb3 Rec8 {1-0 (36) Sviridov,V (2245)-Kurbatskaya,L (1944) Novosibirsk 2012}) 13. Nxe4 $14 {[%emt 0:00:08]} Nxe4 {[%emt 0:00:18]} 14. Qxe4 {[%emt 0:00:38][%csl Gd3][%cal Re4h7] [#]} (14. Bxe4 Rad8 $11) 14... g6 {[%emt 0:06:49][%cal Oc6b4]} 15. Qf4 {[%emt 0:11:43] Inhibits Nb4. White is more active.} Bd6 {[%emt 0:10:11]} 16. Qh6 {[%emt 0:00:18][%csl Gb2][%cal Rh6g7]} e5 $2 {[%emt 0:02:01] Loses the game.} (16... f6 $11 {and Black is okay.}) 17. Bc4 {[%emt 0:02:29]} ({Not} 17. Ng5 f6 $11) 17... Kh8 {[%emt 0:04:24]} (17... Qf6 $16) 18. Rad1 $40 {[%emt 0:01:17][%cal Od1d6,Ba1d1,Bd1d7,Bd7c7][%mdl 160] White has strong attack.} ({Weaker is} 18. Ng5 f6 19. Ne4 Nd4 20. Nxd6 Qxd6 $11) 18... Bc7 {[%emt 0:13:25]} (18... f6 {was necessary.}) 19. Ng5 {[%emt 0:02:05][%csl Gg5][%cal Rh6h7]} f6 {[%emt 0:00:41] [#]} 20. Nxh7 {[%emt 0:00:11][%mdl 512]} Qxh7 {[%emt 0:01:58]} 21. Qxh7+ {[%emt 0:00:06][%mdl 64] Remove Defender} Kxh7 {[%emt 0:00:05]} 22. Rd7+ {[%emt 0:00:07]} Kh8 {[%emt 0:03:34] Strongly threatening ...Rac8.} 23. Rxc7 {[%emt 0:00:07]} Rab8 $2 {[%emt 0:00:53]} (23... Na5 24. f4 Rac8) 24. f4 {[%emt 0:05:51][%cal Bf2f4,Bf4e5,Be5f6,Bf6f7][%mdl 32] Black must now prevent Rf3. White is clearly winning.} Na5 {[%emt 0:07:20]} 25. fxe5 {[%emt 0:06:38]} Nxc4 {[%emt 0:00:57]} 26. bxc4 {[%emt 0:00:20]} Rfc8 {[%emt 0:03:45]} 27. Rxc8+ {[%emt 0:01:34]} Rxc8 {[%emt 0:00:17]} 28. exf6 {[%emt 0:00:10] aiming for f7+.} Rf8 {[%emt 0:02:46]} 29. f7+ {[%emt 0:00:50]} Kh7 {[%emt 0:00:02]} 30. Bc3 {[%emt 0:00:30]} a5 {[%emt 0:00:36]} 31. Be5 {[%emt 0:00:31] Weighted Error Value: White=0.17 (very precise) /Black=0.66} 1-0